bitfinex-derivatives/quotes_BNBF0:USTF0_20251225
["timestamp","ask_amount","ask_price","bid_price","bid_amount"]
[1766680569462,0.88763237,842.35,841.01,1.1867515]
[1766680570165,0.88763237,842.34,841.01,1.1867515]
[1766680570362,0.88763237,842.35,841.0,1.1867515]
[1766680571268,0.88763237,842.34,840.99,1.1867515]
[1766680572475,0.88763237,842.35,840.98,1.1867515]
[1766680573177,0.88763237,842.35,840.99,1.1867515]
[1766680573377,0.88763237,842.35,840.98,1.1867515]
[1766680573675,0.88763237,842.36,840.99,1.1867515]
[1766680575276,0.88763237,842.36,840.99,10.11422799]
[1766680575580,0.88763237,842.48,841.1,1.1867515]
[1766680575781,0.88763237,842.49,841.11,1.1867515]
[1766680576176,0.88763237,842.48,841.11,1.1867515]
[1766680576380,0.88763237,842.46,841.1,1.1867515]
[1766680578282,0.88763237,842.46,841.11,1.1867515]
[1766680578482,0.88763237,842.45,841.11,1.1867515]
[1766680578983,0.88763237,842.46,841.12,1.1867515]
[1766680579184,0.88763237,842.47,841.13,1.1867515]
[1766680580177,0.88763237,842.46,841.14,1.1867515]
[1766680581484,0.88763237,842.45,841.15,1.1867515]
[1766680581680,0.88763237,842.44,841.13,1.1867515]
[1766680582285,0.88763237,842.43,841.14,1.1867515]
[1766680583185,0.88763237,842.42,841.14,1.1867515]
[1766680583482,0.88763237,842.42,841.15,1.1867515]
[1766680583982,0.88763237,842.42,841.15,10.20268418]
[1766680584188,0.88763237,842.41,841.15,10.20268418]
[1766680584381,0.88763237,842.41,841.16,1.1867515]
[1766680585382,0.88763237,842.4,841.17,1.1867515]
[1766680586186,0.88763237,842.39,841.18,1.1867515]
[1766680586387,0.88763237,842.38,841.18,1.1867515]
[1766680587181,0.20656681,842.61,840.42,2.95491084]
[1766680587182,0.88763237,842.37,841.2,1.1867515]
[1766680588188,0.88763237,842.36,841.21,1.1867515]
[1766680589184,0.88763237,842.35,841.22,1.1867515]
[1766680590290,0.88763237,842.34,841.22,1.1867515]
[1766680590486,0.88763237,842.34,841.23,1.1867515]
[1766680592192,0.88763237,842.34,841.08,1.7729465]
[1766680592193,0.88763237,842.33,841.24,1.1867515]
[1766680592892,0.88763237,842.33,841.24,9.98366916]
[1766680593292,0.88763237,842.32,841.24,9.98366916]
[1766680594197,0.88763237,842.32,841.25,1.1867515]
[1766680595400,0.88763237,842.31,841.25,1.1867515]
[1766680595801,0.88763237,842.27,841.24,8.79691766]
[1766680596001,0.88763237,842.27,841.21,1.1867515]
[1766680596200,0.88763237,842.27,841.22,1.1867515]
[1766680597197,0.88763237,842.26,841.22,1.1867515]
[1766680598196,0.88763237,842.25,841.23,1.1867515]
[1766680598703,0.88763237,842.25,841.23,10.14489784]
[1766680599204,0.88763237,842.24,841.24,1.1867515]
[1766680605308,0.88763237,842.24,841.25,1.1867515]
[1766680607406,0.88763237,842.23,841.25,1.1867515]
[1766680609308,0.88763237,842.23,841.26,1.1867515]
[1766680609508,0.88763237,842.23,841.26,10.25498545]
[1766680610109,0.88763237,842.2,841.26,9.06823395]
[1766680611410,0.88763237,842.12,841.26,9.06823395]
[1766680612611,0.88763237,842.12,841.15,1.1867515]
[1766680613414,0.88763237,842.13,841.15,1.1867515]
[1766680614311,0.88763237,842.13,841.14,1.1867515]
[1766680614610,0.88763237,842.09,841.11,1.1867515]
[1766680614815,0.88763237,842.02,841.03,1.1867515]
[1766680615008,0.88763237,842.02,840.88,1.7729465]
[1766680615009,0.88763237,842.02,841.01,1.1867515]
[1766680615213,0.88763237,841.92,840.93,1.1867515]
[1766680615413,0.88763237,841.94,840.91,1.1867515]
[1766680615814,0.88763237,841.92,840.89,1.1867515]
[1766680616310,0.88763237,841.9,840.82,1.1867515]
[1766680616716,0.88763237,841.85,840.77,1.1867515]
[1766680617314,0.88763237,841.87,840.75,1.1867515]
[1766680617514,0.88763237,841.88,840.76,1.1867515]
[1766680617711,0.88763237,841.88,840.6,1.7729465]
[1766680617712,0.88763237,841.94,840.82,1.1867515]
[1766680618211,0.88763237,841.96,840.83,1.1867515]
[1766680618413,0.88763237,841.97,840.83,9.01192962]
[1766680619311,0.88763237,841.99,840.83,9.01192962]
[1766680620418,0.88763237,842.05,840.87,1.1867515]
[1766680620620,0.88763237,842.04,840.86,1.1867515]
[1766680621120,0.88763237,842.03,840.86,1.1867515]
[1766680621320,0.88763237,841.77,840.83,9.01192962]
[1766680621521,0.88763237,841.79,840.55,1.1867515]
[1766680622320,0.20656681,842.61,840.53,1.1867515]
[1766680622321,0.88763237,841.82,840.53,1.1867515]
[1766680623322,0.88763237,841.84,840.51,1.1867515]
[1766680624421,0.88763237,841.85,840.49,1.1867515]
[1766680625418,0.88763237,841.87,840.48,1.1867515]
[1766680626319,0.88763237,841.88,840.46,1.1867515]
[1766680626823,0.88763237,841.87,840.45,1.1867515]
[1766680627422,0.88763237,841.88,840.44,1.1867515]
[1766680628322,0.88763237,841.89,840.43,1.1867515]
[1766680629420,0.88763237,841.9,840.42,1.1867515]
[1766680630319,0.88763237,841.9,840.41,1.1867515]
[1766680631320,0.88763237,841.91,840.4,1.1867515]
[1766680632327,0.88763237,841.91,840.39,1.1867515]
[1766680633829,0.88763237,841.91,840.38,1.1867515]
[1766680634027,0.88763237,841.88,840.35,1.1867515]
[1766680634226,0.88763237,841.87,840.34,1.1867515]
[1766680634422,0.88763237,841.87,840.33,1.1867515]
[1766680636226,0.88763237,841.87,840.32,1.1867515]
[1766680637131,0.88763237,841.8,840.25,1.1867515]
[1766680637332,0.88763237,841.81,840.25,1.1867515]
[1766680638428,0.88763237,841.81,840.24,1.1867515]
[1766680641336,0.88763237,841.81,840.23,1.1867515]
[1766680643436,0.88763237,841.8,840.23,1.1867515]
[1766680644235,0.88763237,841.8,840.24,1.1867515]
[1766680644437,0.88763237,841.8,840.24,8.89891272]
[1766680644940,0.88763237,841.81,840.24,10.08566422]
[1766680645337,0.88763237,841.81,840.25,1.1867515]
[1766680646341,0.88763237,841.8,840.25,1.1867515]
[1766680647342,0.88763237,841.79,840.26,1.1867515]
[1766680647538,0.88763237,841.83,840.3,1.1867515]
[1766680647740,0.88763237,841.87,840.33,1.1867515]
[1766680648337,0.88763237,841.86,840.35,1.1867515]
[1766680649337,0.88763237,841.86,840.19,1.7729465]
[1766680649338,0.88763237,841.91,840.41,1.1867515]
[1766680650445,0.88763237,841.89,840.43,1.1867515]
[1766680650641,0.88763237,841.89,840.43,10.26987086]
[1766680651445,0.88763237,841.89,840.45,1.1867515]
[1766680652445,0.88763237,841.88,840.47,1.1867515]
[1766680653044,0.88763237,841.87,840.47,1.1867515]
[1766680653340,0.88763237,841.86,840.49,1.1867515]
[1766680654341,0.88763237,841.84,840.51,1.1867515]
[1766680655240,0.88763237,841.82,840.53,1.1867515]
[1766680655542,0.88763237,841.82,839.45,4.13687518]
[1766680655543,0.88763237,841.82,840.54,1.1867515]
[1766680655745,0.88763237,841.84,840.56,1.1867515]
[1766680656345,0.88763237,841.83,840.58,1.1867515]
[1766680657442,0.88763237,841.81,840.6,1.1867515]
[1766680658249,0.88763237,841.79,840.62,1.1867515]
[1766680658443,0.88763237,841.79,840.63,1.1867515]
[1766680659342,0.88763237,841.76,840.66,1.1867515]
[1766680660443,0.88763237,841.75,840.67,1.1867515]
[1766680661449,0.88763237,841.75,840.68,1.1867515]
[1766680663353,0.88763237,841.74,840.7,1.1867515]
[1766680664048,0.88763237,841.81,840.77,1.1867515]
[1766680664249,0.88763237,841.81,840.77,10.2197365]
[1766680664452,0.88763237,841.8,840.78,1.1867515]
[1766680665549,0.88763237,841.81,840.77,10.2197365]
[1766680666152,0.88763237,841.81,840.78,1.1867515]
[1766680666555,0.88763237,841.81,840.77,10.2197365]
[1766680667349,0.88763237,841.82,840.77,10.2197365]
[1766680667750,0.88763237,841.82,840.77,1.1867515]
[1766680668651,0.20681048,841.56,840.77,1.1867515]
[1766680668851,13.09076261,841.56,840.77,1.1867515]
[1766680669456,13.09076261,841.56,840.76,1.1867515]
[1766680673158,0.20681048,841.56,840.76,1.1867515]
[1766680673457,0.20681048,841.56,840.75,1.1867515]
[1766680679062,0.20681048,841.56,840.74,1.1867515]
[1766680679263,0.20681048,841.56,840.75,1.1867515]
[1766680679559,0.20681048,841.56,840.74,1.1867515]
[1766680682466,0.20681048,841.56,840.59,1.7729465]
[1766680682467,0.20681048,841.56,840.75,1.1867515]
[1766680682663,0.20681048,841.56,840.75,9.96009487]
[1766680685264,0.20681048,841.56,840.76,1.1867515]
[1766680687370,0.20681048,841.56,840.77,1.1867515]
[1766680689473,0.20681048,841.56,840.78,1.1867515]
[1766680690477,0.20681048,841.56,840.79,1.1867515]
[1766680692279,0.20681048,841.56,840.8,1.1867515]
[1766680692476,0.20681048,841.56,840.81,1.1867515]
[1766680692776,0.20681048,841.56,840.81,10.08683741]
[1766680694278,0.20681048,841.56,840.82,1.1867515]
[1766680696281,0.88763237,841.77,840.82,1.1867515]
[1766680696482,0.88763237,841.82,840.87,1.1867515]
[1766680696682,0.20679328,841.66,840.87,1.1867515]
[1766680698479,0.20679328,841.66,840.88,1.1867515]
[1766680699280,0.20679328,841.66,840.87,1.1867515]
[1766680699586,0.20679328,841.66,840.92,1.1867515]
[1766680700981,0.20679328,841.66,840.93,1.1867515]
[1766680701482,0.20679328,841.66,840.92,1.1867515]
[1766680708490,0.20679328,841.66,840.93,1.1867515]
[1766680710188,0.20679328,841.66,840.93,9.97824119]
[1766680711296,0.20679328,841.66,840.93,8.79148969]
[1766680711495,0.20679328,841.66,841.0,1.1867515]
[1766680711790,0.20679328,841.66,840.98,1.1867515]
[1766680712291,0.20679328,841.66,840.93,9.97824119]
[1766680712495,0.20679328,841.66,840.93,8.79148969]
[1766680714191,0.20679328,841.66,840.92,1.1867515]
[1766680715197,0.20679328,841.66,840.91,1.1867515]
[1766680724008,0.88621019,841.93,840.94,1.1867515]
[1766680724308,0.20675581,841.9,841.05,1.1867515]
[1766680724505,0.20675581,841.9,841.06,1.1867515]
[1766680724809,0.20675581,841.9,841.07,1.1867515]
[1766680725304,0.20675581,841.9,841.06,1.1867515]
[1766680727313,0.20675581,841.9,841.05,1.1867515]
[1766680727813,0.20675581,841.9,841.06,1.1867515]
[1766680728115,0.20675581,841.9,841.14,1.1867515]
[1766680728315,0.20675581,841.9,841.15,1.1867515]
[1766680728711,0.88621019,842.22,841.15,1.1867515]
[1766680728915,0.20670607,841.98,841.15,1.1867515]
[1766680729115,12.95793337,841.98,841.16,1.1867515]
[1766680729311,12.95793337,841.98,841.01,1.7729465]
[1766680729312,12.95793337,841.98,841.15,1.1867515]
[1766680730317,12.95793337,841.98,841.13,1.1867515]
[1766680730714,12.95793337,841.98,841.14,1.1867515]
[1766680731320,12.95793337,841.98,841.08,1.1867515]
[1766680732622,0.20670607,841.98,841.08,1.1867515]
[1766680733217,0.20670607,841.98,841.06,1.1867515]
[1766680734220,0.20670607,841.98,840.9,1.7729465]
[1766680734221,0.20670607,841.98,841.05,1.1867515]
[1766680741326,0.20670607,841.98,841.06,1.1867515]
[1766680743625,0.20670607,841.98,841.08,1.1867515]
[1766680754335,0.20670607,841.98,841.09,1.1867515]
[1766680756740,0.20670607,841.98,841.12,1.1867515]
[1766680757239,0.20670607,841.98,841.14,1.1867515]
[1766680760247,0.20670607,841.98,841.15,1.1867515]
[1766680762346,0.20670607,841.98,841.16,1.1867515]
[1766680764246,0.20670607,841.98,841.17,1.1867515]
[1766680765244,0.20670607,841.98,841.18,1.1867515]
[1766680766351,0.20670607,841.98,841.19,1.1867515]
[1766680767350,0.20670607,841.98,841.2,1.1867515]
[1766680767548,0.20670607,841.98,841.2,10.23888998]
[1766680768254,0.20670607,841.98,841.22,1.1867515]
[1766680769258,0.20670607,841.98,841.23,1.1867515]
[1766680772263,0.20670607,841.98,841.24,1.1867515]
[1766680773863,0.20670607,841.98,841.24,10.09185685]
[1766680777262,0.20670607,841.98,841.24,8.90510535]
[1766680777466,0.20670607,841.98,841.23,1.1867515]
[1766680779266,0.20670607,841.98,841.24,1.1867515]
[1766680783770,0.20670607,841.98,841.23,1.1867515]
[1766680786773,0.20670607,841.98,841.2,1.1867515]
[1766680800188,0.20670607,841.98,841.18,1.1867515]
[1766680808289,0.20670607,841.98,841.17,1.1867515]
[1766680822106,0.20670607,841.98,841.18,1.1867515]
[1766680828216,0.20670607,841.98,841.19,1.1867515]
[1766680828416,0.20670607,841.98,841.19,10.05167557]
[1766680831312,0.20670607,841.98,841.2,1.1867515]
[1766680839921,0.20670607,841.98,841.17,1.1867515]
[1766680840124,0.88959509,841.93,841.07,1.1867515]
[1766680840324,0.88959509,841.95,841.06,1.1867515]
[1766680841219,0.88959509,841.96,841.05,1.1867515]
[1766680842224,0.88959509,841.96,841.04,1.1867515]
[1766680843325,0.88959509,841.97,841.03,1.1867515]
[1766680846220,1.09630116,841.98,841.03,1.1867515]
[1766680846425,1.09630116,841.98,841.02,1.1867515]
[1766680848724,0.20670607,841.98,841.05,1.1867515]
[1766680864535,0.20670607,841.98,841.09,1.1867515]
[1766680864839,0.20670607,841.98,841.11,1.1867515]
[1766680874248,0.20670607,841.98,841.12,1.1867515]
[1766680883256,0.20670607,841.98,841.13,1.1867515]
[1766680887362,0.20670607,841.98,841.19,1.1867515]
[1766680887563,0.20670607,841.98,841.19,10.05380934]
[1766680891062,0.20670607,841.98,841.19,1.1867515]
[1766680891861,0.20670607,841.98,841.2,1.1867515]
[1766680894465,0.20670607,841.98,841.19,1.1867515]
[1766680898165,0.20670607,841.98,841.21,1.1867515]
[1766680898368,0.20670607,841.98,841.24,1.1867515]
[1766680899369,0.20670607,841.98,841.23,1.1867515]
[1766680904765,0.20670607,841.98,841.21,1.1867515]
[1766680905966,0.20670607,841.98,841.15,1.1867515]
[1766680906568,0.20670607,841.98,841.16,1.1867515]
[1766680909370,0.20670607,841.98,841.17,1.1867515]
[1766680909570,0.20670607,841.98,841.17,10.17738548]
[1766680913173,0.20670607,841.98,841.17,1.1867515]
[1766680919477,0.20670607,841.98,841.18,1.1867515]
[1766680919876,0.20670607,841.98,841.14,1.1867515]
[1766680920079,0.20670607,841.98,841.11,1.1867515]
[1766680928891,0.88780261,842.07,841.11,1.1867515]
[1766680929091,0.20673861,841.84,841.11,1.1867515]
[1766680929490,0.20673861,841.84,841.1,1.1867515]
[1766680946310,0.20673861,841.84,841.11,1.1867515]
[1766680946912,0.20673861,841.84,841.11,10.24726563]
[1766680949512,0.20673861,841.84,841.12,1.1867515]
[1766680952311,0.20673861,841.84,841.13,1.1867515]
[1766680953116,0.20673861,841.84,841.13,10.07678261]
[1766680956819,0.20673861,841.84,841.13,1.1867515]
[1766680957321,0.88780261,842.05,841.15,1.1867515]
[1766680957617,0.20672571,841.95,841.15,1.1867515]
[1766680957918,13.25181785,841.95,841.15,10.0424759]
[1766680960018,13.25181785,841.95,841.16,1.1867515]
[1766680960322,13.25181785,841.95,841.15,8.8557244]
[1766680960323,13.25181785,841.95,841.17,1.1867515]
[1766680961119,0.20672571,841.95,841.17,1.1867515]
[1766680964321,0.20672571,841.95,841.18,1.1867515]
[1766680965821,0.20672571,841.95,841.28,1.1867515]
[1766680966022,0.20672571,841.95,841.3,1.1867515]
[1766680966426,0.20672571,841.95,841.28,1.1867515]
[1766680967424,0.20672571,841.95,840.98,55.0979148]
[1766680967425,0.20672571,841.95,841.27,1.1867515]
[1766680968828,0.20672571,841.95,841.31,1.1867515]
[1766680969128,0.20668397,842.14,841.32,1.1867515]
[1766680969321,0.20668397,842.14,841.31,10.21561107]
[1766680969726,0.20668397,842.14,841.32,1.1867515]
[1766680970227,0.20668397,842.14,841.35,1.1867515]
[1766680970423,0.20668397,842.14,841.31,9.02885957]
[1766680970424,0.20668397,842.14,841.34,1.1867515]
[1766680971429,0.20668397,842.14,841.33,1.1867515]
[1766680972328,0.20668397,842.14,841.32,1.1867515]
[1766680973330,0.20668397,842.14,841.31,1.1867515]
[1766680974827,0.88942397,842.45,841.4,1.1867515]
[1766680975029,0.20665451,842.28,841.4,10.26209734]
[1766680975328,0.20665451,842.28,841.4,9.07534584]
[1766680978734,0.20665451,842.28,841.36,1.1867515]
[1766680979331,0.20665451,842.28,841.35,1.1867515]
[1766680981340,0.20665451,842.28,841.36,1.1867515]
[1766680981640,0.88942397,842.63,841.47,1.1867515]
[1766680981842,0.20662813,842.4,841.47,1.1867515]
[1766680982336,0.20662813,842.4,841.45,1.1867515]
[1766680983141,0.20662813,842.4,841.3,1.7729465]
[1766680983142,0.20662813,842.4,841.44,1.1867515]
[1766680984240,0.20662813,842.4,841.43,1.1867515]
[1766680985238,0.20662813,842.4,841.42,1.1867515]
[1766680987243,0.20662813,842.4,841.41,1.1867515]
[1766680988248,0.20662813,842.4,841.4,1.1867515]
[1766680991341,0.20662813,842.4,841.39,1.1867515]
[1766680992646,0.20662813,842.4,841.38,1.1867515]
[1766680993541,0.20662813,842.4,841.35,1.1867515]
[1766680994344,0.20662813,842.4,841.34,1.1867515]
[1766680996547,0.20662813,842.4,841.5,0.88531927]
[1766680997241,0.20662813,842.4,841.51,0.88531927]
[1766680997745,0.20662813,842.4,841.43,0.88531927]
[1766680999342,0.20662813,842.4,841.44,0.88531927]
[1766681001348,0.20662813,842.4,841.45,0.88531927]
[1766681002149,0.20662813,842.4,841.45,9.91278274]
[1766681002347,0.20662813,842.4,841.46,0.88531927]
[1766681004245,0.20662813,842.4,841.47,0.88531927]
[1766681005445,0.20662813,842.4,841.48,0.88531927]
[1766681006355,0.20662813,842.4,841.49,0.88531927]
[1766681007353,0.20662813,842.4,841.5,0.88531927]
[1766681008256,0.20662813,842.4,841.51,0.88531927]
[1766681009156,0.20662813,842.4,841.51,9.78582643]
[1766681009457,0.20662813,842.4,841.52,0.88531927]
[1766681010354,0.20662813,842.4,841.54,0.88531927]
[1766681011455,0.20662813,842.4,841.55,0.88531927]
[1766681013455,0.20662813,842.4,841.56,0.88531927]
[1766681014258,0.20662813,842.4,841.57,0.88531927]
[1766681018368,0.20662813,842.4,841.58,0.88531927]
[1766681031276,0.20662813,842.4,841.59,0.88531927]
[1766681033177,1.0960521,842.4,841.59,0.88531927]
[1766681034274,1.0960521,842.4,841.6,0.88531927]
[1766681034681,1.0960521,842.4,841.6,9.85626894]
[1766681035377,0.88942397,842.39,841.6,9.85626894]
[1766681036382,0.88942397,842.39,841.61,0.88531927]
[1766681037484,0.88942397,842.38,841.62,0.88531927]
[1766681038186,0.88942397,842.37,841.62,0.88531927]
[1766681039286,0.88942397,842.37,841.63,0.88531927]
[1766681040288,0.88942397,842.36,841.63,0.88531927]
[1766681041289,0.88942397,842.36,841.64,0.88531927]
[1766681041590,0.88942397,842.36,841.64,9.68588659]
[1766681042185,0.20662813,842.4,841.64,9.68588659]
[1766681042186,0.88942397,842.34,841.65,0.88531927]
[1766681042589,0.88942397,842.35,841.66,0.88531927]
[1766681042786,0.20662813,842.4,841.64,8.80056732]
[1766681042787,0.88942397,842.36,841.67,0.88531927]
[1766681043786,0.88942397,842.39,841.7,0.88531927]
[1766681044189,0.20662813,842.4,841.69,0.88531927]
[1766681044190,1.0960521,842.4,841.69,0.88531927]
[1766681047087,0.20662813,842.4,841.68,0.88531927]
[1766681047290,0.20662813,842.4,841.75,0.88531927]
[1766681048287,0.20662813,842.4,841.74,0.88531927]
[1766681049087,0.20662813,842.4,841.73,0.88531927]
[1766681051188,0.20662813,842.4,841.72,0.88531927]
[1766681054194,0.20662813,842.4,841.71,0.88531927]
[1766681056694,0.20662813,842.4,841.72,0.88531927]
[1766681057190,0.20662813,842.4,841.71,0.88531927]
[1766681069100,0.20662813,842.4,841.7,0.88531927]
[1766681070103,0.20662813,842.4,841.66,0.88531927]
[1766681072210,0.20662813,842.4,841.67,0.88531927]
[1766681079216,0.20662813,842.4,841.68,0.88531927]
[1766681083225,0.20662813,842.4,841.69,0.88531927]
[1766681083425,0.20662813,842.4,841.69,9.64450367]
[1766681085726,0.20662813,842.4,841.69,8.7591844]
[1766681086726,0.20662813,842.4,841.67,0.88531927]
[1766681088329,0.20662813,842.4,841.68,0.88531927]
[1766681091324,0.20662813,842.4,841.66,0.88531927]
[1766681095228,0.20662813,842.4,841.65,0.88531927]
[1766681095630,0.20662813,842.4,840.82,0.01024389]
[1766681095631,0.88942397,842.39,841.63,0.88531927]
[1766681097233,1.0960521,842.4,841.63,0.88531927]
[1766681105445,1.0960521,842.4,841.62,0.88531927]
[1766681105942,0.88942397,842.32,841.55,0.88531927]
[1766681106348,0.88942397,842.33,841.54,0.88531927]
[1766681108144,0.88942397,842.34,841.54,0.88531927]
[1766681109249,0.88942397,842.34,841.53,0.88531927]
[1766681109850,1.0960521,842.4,841.6,0.88531927]
[1766681110150,1.0960521,842.4,841.6,9.69272553]
[1766681113051,1.0960521,842.4,841.6,0.88531927]
[1766681115257,0.88942397,842.39,841.59,0.88531927]
[1766681117154,0.88942397,842.38,841.58,0.88531927]
[1766681118357,0.88942397,842.36,841.57,0.88531927]
[1766681118557,0.88942397,842.36,841.14,55.42638919]
[1766681118558,0.88942397,842.31,841.52,0.88531927]
[1766681119058,0.88942397,842.31,841.51,0.88531927]
[1766681120157,0.88942397,842.32,841.51,0.88531927]
[1766681122154,0.88942397,842.32,841.5,0.88531927]
[1766681135170,0.88942397,842.32,841.51,0.88531927]
[1766681139173,0.88942397,842.31,841.51,0.88531927]
[1766681143179,0.88942397,842.31,841.52,0.88531927]
[1766681143379,0.88942397,842.31,841.52,9.7433304]
[1766681146383,0.88942397,842.31,841.52,0.88531927]
[1766681147178,0.88942397,842.3,841.52,0.88531927]
[1766681150183,0.88942397,842.3,841.53,0.88531927]
[1766681152589,0.20662813,842.4,841.66,0.88531927]
[1766681152889,0.20662813,842.4,841.66,9.82063343]
[1766681153488,0.20662813,842.4,841.7,0.88531927]
[1766681154189,0.20662813,842.4,841.69,0.88531927]
[1766681155186,0.20662813,842.4,841.66,8.93531416]
[1766681155187,0.20662813,842.4,841.68,0.88531927]
[1766681157194,0.20662813,842.4,841.67,0.88531927]
[1766681158193,0.20662813,842.4,841.63,0.88531927]
[1766681162291,0.20662813,842.4,841.62,0.88531927]
[1766681166502,0.20662813,842.4,841.68,0.88531927]
[1766681166703,0.20662813,842.4,841.68,9.64606133]
[1766681167205,0.20662813,842.4,841.68,8.76074206]
[1766681170107,0.20662813,842.4,841.67,0.88531927]
[1766681171102,0.20662813,842.4,841.66,0.88531927]
[1766681172201,0.20662813,842.4,841.78,0.88531927]
[1766681173111,0.20662813,842.4,841.77,0.88531927]
[1766681173303,0.88942397,842.7,841.79,0.88531927]
[1766681173506,0.88942397,842.6,841.68,0.88531927]
[1766681173708,1.18823642,842.75,841.68,0.88531927]
[1766681173709,13.19471545,842.39,841.68,0.88531927]
[1766681173906,12.98812167,842.39,841.68,0.88531927]
[1766681174111,0.20662016,842.37,841.68,0.88531927]
[1766681174310,0.20662016,842.37,841.67,0.88531927]
[1766681174512,0.20662016,842.37,841.66,0.88531927]
[1766681175208,0.20662016,842.37,841.65,0.88531927]
[1766681175408,0.20662016,842.37,841.59,0.88531927]
[1766681175913,0.20662016,842.37,841.57,0.88531927]
[1766681176213,0.20662016,842.37,841.55,0.88531927]
[1766681176513,0.20662016,842.37,841.51,0.88531927]
[1766681176916,0.20662016,842.37,841.33,1.1867515]
[1766681177410,0.20662016,842.37,841.32,1.1867515]
[1766681178914,1.09604413,842.37,841.3,1.1867515]
[1766681179315,0.88942397,842.35,841.28,1.1867515]
[1766681182216,0.88942397,842.35,841.27,1.1867515]
[1766681182418,0.88942397,842.35,841.28,1.1867515]
[1766681183118,0.88942397,842.35,841.27,1.1867515]
[1766681184013,0.88942397,842.35,841.28,1.1867515]
[1766681184216,0.88942397,842.35,841.27,1.1867515]
[1766681187917,0.88942397,842.34,841.27,1.1867515]
[1766681210136,0.88942397,842.34,841.28,1.1867515]
[1766681212041,0.88942397,842.33,841.28,1.1867515]
[1766681214138,0.88942397,842.33,841.29,1.1867515]
[1766681215144,0.88942397,842.32,841.29,9.97425599]
[1766681216145,0.88942397,842.32,841.3,1.1867515]
[1766681217140,0.88942397,842.31,841.31,1.1867515]
[1766681218243,0.88942397,842.29,841.33,1.1867515]
[1766681219346,0.88942397,842.27,841.34,1.1867515]
[1766681220145,0.88942397,842.25,841.36,1.1867515]
[1766681221146,0.88942397,842.24,841.37,1.1867515]
[1766681221846,0.88942397,842.06,841.19,1.1867515]
[1766681222046,0.88942397,841.95,841.08,1.1867515]
[1766681222247,0.88942397,841.99,841.03,1.1867515]
[1766681222547,0.88942397,841.99,841.04,1.1867515]
[1766681223044,0.88942397,841.96,841.01,1.1867515]
[1766681223347,0.88942397,842.01,841.02,1.1867515]
[1766681224247,0.88942397,842.02,841.0,1.1867515]
[1766681225345,0.88942397,842.03,840.99,1.1867515]
[1766681225848,0.88942397,842.04,840.99,1.1867515]
[1766681226243,0.88942397,842.04,840.15,0.01393683]
[1766681226244,0.88942397,842.04,840.98,1.1867515]
[1766681227148,0.88942397,842.05,840.98,1.1867515]
[1766681227346,0.88942397,842.05,840.97,1.1867515]
[1766681228449,0.88942397,842.06,840.97,1.1867515]
[1766681229347,0.88942397,842.07,840.96,1.1867515]
[1766681231149,0.88942397,842.07,840.95,1.1867515]
[1766681231346,0.88942397,842.08,840.95,1.1867515]
[1766681232854,0.88942397,842.07,840.94,1.1867515]
[1766681233051,0.88942397,842.06,840.93,1.1867515]
[1766681233248,0.88942397,842.03,840.89,1.1867515]
[1766681234156,0.88942397,842.04,840.89,1.1867515]
[1766681234350,0.88942397,842.04,840.88,1.1867515]
[1766681235252,0.88942397,842.05,840.88,1.1867515]
[1766681235858,0.88661462,842.05,840.88,1.1867515]
[1766681236058,13.99169369,842.05,840.88,1.1867515]
[1766681236253,13.99169369,842.05,840.87,1.1867515]
[1766681237258,13.10507907,842.05,840.87,1.1867515]
[1766681238258,13.10507907,842.05,840.11,2.95491084]
[1766681238259,13.10507907,842.05,840.86,1.1867515]
[1766681239461,0.88661462,842.06,840.86,1.1867515]
[1766681241061,0.88661462,842.05,840.85,1.1867515]
[1766681241360,0.88661462,842.06,840.85,1.1867515]
[1766681242259,0.88661462,842.06,840.84,1.1867515]
[1766681244163,0.88661462,842.08,840.86,1.1867515]
[1766681244358,0.88661462,842.08,840.87,1.1867515]
[1766681245059,0.88661462,842.14,840.92,1.1867515]
[1766681245258,0.88661462,842.13,840.92,1.1867515]
[1766681247161,0.88661462,842.13,840.93,1.1867515]
[1766681250166,0.88661462,842.12,840.94,1.1867515]
[1766681253168,0.88661462,842.11,840.95,1.1867515]
[1766681255065,0.20662016,842.37,840.8,1.7729465]
[1766681255066,0.88661462,842.1,840.96,1.1867515]
[1766681255371,0.88661462,842.1,840.96,10.08598986]
[1766681257372,0.88661462,842.09,840.97,1.1867515]
[1766681258275,0.88661462,842.08,840.98,1.1867515]
[1766681259375,0.88661462,842.07,840.98,1.1867515]
[1766681259678,0.88661462,842.09,841.0,1.1867515]
[1766681260174,0.88661462,842.08,841.01,1.1867515]
[1766681261182,0.88661462,842.07,841.02,1.1867515]
[1766681262082,0.88661462,842.06,841.03,1.1867515]
[1766681263176,0.88661462,842.05,841.05,1.1867515]
[1766681264179,0.88661462,842.03,841.06,1.1867515]
[1766681264481,54.03350996,842.32,841.08,1.1867515]
[1766681264482,0.88661462,842.05,841.08,1.1867515]
[1766681265984,0.88661462,842.04,841.08,1.1867515]
[1766681266280,0.88661462,842.02,841.1,1.1867515]
[1766681268187,0.88661462,842.02,841.09,1.1867515]
[1766681278090,0.88661462,842.02,841.08,1.1867515]
[1766681279193,0.88661462,842.01,841.08,1.1867515]
[1766681279390,13.95069912,842.01,841.08,1.1867515]
[1766681280093,0.88661462,841.98,841.05,1.1867515]
[1766681281392,0.88661462,841.99,841.07,1.1867515]
[1766681283192,13.0640845,842.01,841.1,1.1867515]